{"text_format":"1","workbook":"xlsx","n_sheets":14,"sheets":["Cover","Info","Results","E01","E02","E03","E04","E05","E06","E07","E08","E09","E10","About"],"not_rendered":{"charts":11,"images":42,"macros":1,"external_links":0,"defined_names":16,"comments":0,"pivot_tables":0},"unopened":[],"bounds":{"document_bytes":16777216,"sheet_cells":100000,"rows_first":2000,"rows_last":500,"rows_between":2000,"halvings":0,"cell_chars":16384,"cell_head_chars":4096},"cells_cut":0,"cells_raw":0,"read":"whole","date_system":"1900"}

{"sheet":"Cover","index":0,"n_rows":0,"n_cols":0,"rows_kept":0,"cut":false,"hidden":false,"merged":[]}

{"sheet":"Info","index":1,"n_rows":39,"n_cols":4,"rows_kept":39,"cut":false,"hidden":false,"merged":[[38,1,38,3],[39,1,39,3],[2,1,2,2],[3,1,3,2],[4,1,4,2],[5,1,5,2],[6,1,6,2],[37,1,37,3],[31,1,31,2],[32,1,32,2],[33,1,33,2],[34,1,34,2],[35,1,35,2]]}
[]
[]
[null,"Esta Evaluación",null,"Respuesta"]
[null,"Nombre de la ciudad"]
[null,"Tipo de ciudad (municipio, áreas metropolitanas, etc)"]
[null,"País"]
[null,"Fecha de evaluación"]
[]
[null,"Perfil de la ciudad (necesario)","Respuesta","Fuente de los datos"]
[null,"Título del nivel más alto de autoridad (por ejempol, alcalde, etc)"]
[null,"Población total de la ciudad:   "]
[null,"Superficie de la ciudad (en kilómetros cuadrados):"]
[null,"Densidad de población (por kilómetro cuadrado): "]
[null,"Población joven (15-24) (%):"]
[null,"Población de la tercera edad (mayores de 65 años) (%):"]
[null,"Género (hogares con jefas de familia):"]
[null,"Tasa de alfabetismo (% de la población que sabe leer y escribir):"]
[null,"Índice de pobreza (% población que no vive en la pobreza):"]
[null,"Ingreso familiar promedio (en dólares estadounidenses):"]
[null,"Residentes que no son ciudadanos (%):"]
[null,"Riesgo de desastres más probable conocido: "]
[null,"Desastre más severo (conocido): "]
[]
[null,"Perfil de ciudad (opcional)","Respuesta","Fuente de los datos"]
[null,"Cantidad total de hogares: "]
[null,"Personas por unidad familiar:"]
[null,"Costo de vida (en dólares estadounidenses):"]
[null,"PIB per cápita del país (en dólares estadounidenses):"]
[null,"Coeficiente de GINI:"]
[null,"PIB per cápita de la ciudad (en dólares estadounidenses):"]
[]
[null,"Equipo de Reducción del Riesgo de Desastres y Resiliencia del Gobierno Local",null,"Respuesta"]
[null,"Nombre de la persona que dirige / coordina la finalización cuadro de mando:"]
[null,"Organización:"]
[null,"Detalles de contacto:"]
[null,"Voluntad para compartir resultados o ser utilizado como ejemplo / estudio de caso por UNDRR y socios:"]
[]
[null,"Información de despositarios "]
[null,"Por favor, liste todos los depositarios que han apoyado esta evaluación abajo."]

{"sheet":"Results","index":2,"n_rows":221,"n_cols":13,"rows_kept":221,"cut":false,"hidden":false,"merged":[[131,2,131,5],[35,2,35,5],[36,2,36,5],[37,2,37,5],[123,2,123,5],[124,2,124,5],[125,2,125,5],[47,2,47,5],[48,2,48,5],[49,2,49,5],[50,2,50,5],[126,2,126,5],[127,2,127,5],[128,2,128,5],[129,2,129,5],[130,2,130,5],[51,2,51,5],[61,2,61,5],[62,2,62,5],[63,2,63,5],[64,2,64,5],[89,2,89,5],[85,1,85,6],[74,2,74,5],[75,2,75,5],[76,2,76,5],[77,2,77,5],[87,2,87,5],[88,2,88,5],[111,2,111,5],[98,2,98,5],[94,1,94,6],[96,2,96,5],[97,2,97,5],[106,1,106,6],[108,2,108,5],[109,2,109,5],[110,2,110,5],[99,2,99,5],[100,2,100,5],[101,2,101,5],[158,1,158,3],[134,1,134,6],[136,2,136,5],[137,2,137,5],[138,2,138,5],[139,2,139,5],[140,2,140,5],[141,2,141,5],[142,2,142,5],[146,1,146,6],[148,2,148,5],[149,2,149,5]]}
[]
[]
[]
[]
[]
[]
[]
[]
[]
[]
[]
[]
[]
[]
[]
[]
[]
[]
[]
[]
[]
[]
[]
[]
[]
[]
[]
[]
[]
[]
[]
[]
[]
[null,"Aspecto Esencial 01: Organizarse para la resiliencia"]
[]
[null,{"$f":"C175","v":"P1.1"},{"$f":"E175","v":"¿Incluye el plan maestro (o plan/estrategia relevante) de la ciudad enfoques para la reducción del riesgo de desastres, y se aplican de conformidad con el Marco de Sendai? "},null,null,null,{"$f":"F175","v":0}]
[null,{"$f":"C176","v":"P1.2"},{"$f":"E176","v":"¿Existe algún mecanismo interinstitucional/sectorial con la autoridad y los recursos pertinentes para abordar la reducción del riesgo de desastres? "},null,null,null,{"$f":"F176","v":0}]
[null,"P1.3","¿Se integra adecuadamente la resiliencia a otras funciones esenciales/carteras de proyectos de la ciudad? ",null,null,null,0]
[]
[]
[]
[]
[]
[]
[]
[null,"Aspecto Esencial 02: Identificar, comprender y utilizar los escenarios de riesgos actuales y futuros"]
[]
[null,{"$f":"C178","v":"P2.1"},{"$f":"E178","v":"¿Tiene la ciudad conocimiento sobre las principales amenazas que enfrenta, al igual que sobre su probabilidad de ocurrencia?"},null,null,null,{"$f":"F178","v":0}]
[null,{"$f":"C179","v":"P2.2"},{"$f":"E179","v":"¿Existe una comprensión compartida sobre el riesgo entre la ciudad y distintos proveedores de servicios básicos y otras agencias nacionales y regionales que desempeñan alguna función en la gestión de la infraestructura, tales como electricidad, agua, caminos y trenes, en cuanto a los puntos de tensión en los sistemas y los riesgos existentes en el ámbito de la ciudad?"},null,null,null,{"$f":"F179","v":0}]
[null,"P2.3","¿Se han acordado escenarios en los que se planteen la exposición y la vulnerabilidad de la ciudad ante cada amenaza o grupos de amenazas (véase el punto anterior)? ",null,null,null,0]
[null,"P2.4",{"$f":"E181","v":"¿Existe una comprensión colectiva sobre los posibles fallos en cascada entre los diferentes sistemas de la ciudad y de la infraestructura bajo diversos escenarios? "},null,null,null,0]
[null,"P2.5",{"$f":"E182","v":"¿Existen mapas claros sobre amenazas y datos acerca del riesgo? ¿Se actualizan con regularidad? "},null,null,null,0]
[]
[]
[]
[]
[]
[]
[]
[null,"Aspecto Esencial 03: Fortalecer la capacidad financiera para la resiliencia"]
[]
[null,{"$f":"C183","v":"P3.1"},{"$f":"E183","v":"La ciudad/las agencias principales comprenden todas las fuentes de financiamiento y los “dividendos de la resiliencia” guardan una interrelación adecuada. También se comprenden todas las vías disponibles para atraer financiamiento externo y se están buscando activamente fondos para realizar importantes inversiones en la resiliencia. "},null,null,null,{"$f":"F183","v":0}]
[null,{"$f":"C184","v":"P3.2"},{"$f":"E184","v":"¿Cuenta la ciudad con recursos específicos protegidos y mecanismos para fondos de contingencia para la reducción del riesgo de desastres en el ámbito local (mitigación, prevención, respuesta y recuperación)? "},null,null,null,{"$f":"F184","v":0}]
[null,"P3.3","¿Qué nivel de cobertura existe a lo largo de los distintos sectores de la ciudad —empresas, negocios y la comunidad? ",null,null,null,0]
[null,"P3.4","¿Qué incentivos existen para diferentes sectores y segmentos de las empresas y la sociedad, a fin de apoyar el aumento de la resiliencia? ",null,null,null,0]
[]
[]
[]
[]
[]
[]
[]
[null,"Aspecto Esencial 04: Promover el diseño y desarrollo urbano resiliente "]
[]
[null,{"$f":"C187","v":"P4.1"},{"$f":"E187","v":"¿Está la ciudad zonificada de forma adecuada, teniendo en cuenta, por ejemplo, el impacto de escenarios relevantes del riesgo en las actividades económicas, la producción agrícola y los centros de población? "},null,null,null,{"$f":"F187","v":0}]
[null,{"$f":"C188","v":"P4.2"},{"$f":"E188","v":"¿Se fomentan enfoques a través del diseño y la consecución de un nuevo desarrollo urbano para promover la resiliencia?"},null,null,null,{"$f":"F188","v":0}]
[null,"P4.3","¿Existen códigos o normas de construcción y, de ser así, abordan amenazas y riesgos conocidos y específicos de la ciudad? ¿Se actualizan con regularidad estas normas? ",null,null,null,0]
[null,"P4.4","¿Se aplican ampliamente, se hacen cumplir adecuadamente y se verifican las reglas de zonificación, los códigos y las normas de construcción? ",null,null,null,0]
[]
[]
[]
[]
[]
[]
[]
[null,"Aspecto Esencial 05: Proteger las zonas naturales de amortiguación para mejorar las funciones de protección de los ecosistemas"]
[]
[null,{"$f":"C191","v":"P5.1"},{"$f":"E191","v":"Más allá de la sensibilización en torno a los bienes naturales, ¿comprende la ciudad las funciones (o los servicios) que este capital natural le ofrece? "},null,null,null,{"$f":"F191","v":0}]
[null,{"$f":"C192","v":"P5.2"},{"$f":"E192","v":"¿Se está promoviendo a través de las políticas la infraestructura verde y azul en los principales proyectos de desarrollo e infraestructura en las zonas urbanas? "},null,null,null,{"$f":"F202","v":0}]
[null,{"$f":"C193","v":"P5.3"},"¿Tiene conocimiento la ciudad sobre los servicios ecosistémicos que se le están ofreciendo a partir del capital natural fuera de sus límites administrativos?  ¿Existen acuerdos con administraciones vecinas para apoyar la protección y la gestión de estos bienes? ",null,null,null,{"$f":"F203","v":0}]
[]
[]
[]
[]
[null,"Aspecto Esencial 06: Fortalecer la capacidad institucional para la resiliencia "]
[]
[null,{"$f":"C194","v":"P6.1"},{"$f":"E194","v":"¿Cuenta la ciudad con un acceso evidente a todas las destrezas y experiencias que se considera que necesitaría para reducir el riesgo y responder a los escenarios de desastres identificados? "},null,null,null,{"$f":"F194","v":0}]
[null,{"$f":"C195","v":"P6.2"},{"$f":"E195","v":"¿Existe alguna campaña de educación o relaciones públicas debidamente coordinada, con canales y mensajes estructurados para cerciorarse de que la información sobre amenazas, riesgos y desastres (que se pueda comprender y utilizar) se disemine de forma adecuada entre el público? "},null,null,null,{"$f":"F195","v":0}]
[null,"P6.3","El grado al que se comparte información relativa a la resiliencia de la ciudad con otras organizaciones involucradas. ",null,null,null,0]
[null,"P6.4",{"$f":"E197","v":"¿Hay cursos de capacitación que abarquen aspectos del riesgo y la resiliencia y se ofrezcan a todos los sectores de la ciudad, tales como el gobierno, empresas, ONG y comunidades? "},null,null,null,0]
[null,"P6.5",{"$f":"E198","v":"¿Hay material de capacitación disponible en la mayoría de los idiomas que se usan comúnmente en la ciudad?"},null,null,null,0]
[null,"P6.6","¿Está la ciudad buscando de forma proactiva intercambiar conocimiento y aprender de otras ciudades que enfrentan retos similares? ",null,null,null,0]
[]
[]
[]
[]
[null,"Aspecto Esencial 07:  Comprender y fortalecer la capacidad social para la resiliencia "]
[]
[null,{"$f":"C200","v":"P7.1"},{"$f":"E200","v":"¿Están participando las organizaciones de base en la planificación previa a un evento de desastres y en las respuestas posteriores para cada barrio de la ciudad? "},null,null,null,{"$f":"F200","v":0}]
[null,{"$f":"C201","v":"P7.2"},{"$f":"E201","v":"¿Hay programas de capacitación ofrecidos regularmente a los grupos más vulnerables y a las poblaciones necesitadas de la ciudad? "},null,null,null,{"$f":"F201","v":0}]
[null,"P7.3","¿Qué proporción de los negocios cuentan con un plan de continuidad empresarial debidamente documentado, el cual se ha revisado durante los últimos 18 meses? ",null,null,null,0]
[null,"P7.4",{"$f":"E203","v":"¿Qué tan eficaz es la ciudad en cuanto a la participación ciudadana y las comunicaciones referentes a la reducción del riesgo de desastres?"},null,null,null,0]
[]
[]
[]
[]
[]
[]
[]
[]
[]
[null,"Aspecto Esencial 08: Aumentar la resiliencia de la infraestructura vital "]
[]
[null,{"$f":"C204","v":"P8.1"},{"$f":"E204","v":"¿Representa la resiliencia de la infraestructura vital una prioridad de la ciudad? ¿Tiene y ejecuta la ciudad algún plan o estrategia sobre infraestructura vital? "},null,null,null,{"$f":"F204","v":0}]
[null,{"$f":"C205","v":"P8.2"},{"$f":"E205","v":"¿Está bien diseñada y construida la infraestructura de protección, con base en la información sobre los riesgos existentes? "},null,null,null,{"$f":"F205","v":0}]
[null,"P8.3","¿Se prevé que se experimente la pérdida considerable de estos dos servicios esenciales en gran parte de la ciudad bajo los escenarios de desastres acordados?",null,null,null,0]
[null,"P8.4",{"$f":"E207","v":"¿Se prevé que gran parte de la ciudad experimente la pérdida considerable de servicios en un evento bajo el escenario de “en el peor de los casos”? De haber fallas, ¿permanecerían seguros los corredores de infraestructura eléctrica (es decir, sin riesgos de fugas, sin peligros de electrocución etc.)?"},null,null,null,0]
[null,"P8.5","¿Se prevé que gran parte de la ciudad experimente la pérdida considerable de servicios en un evento bajo el escenario de “en el peor de los casos? De haber fallas, ¿permanecerían utilizables y seguros los corredores de la infraestructura de transporte (es decir, sin riesgo de inundaciones, etc.) ",null,null,null,0]
[null,"P8.6","¿Se prevé que una gran parte de la ciudad experimente la pérdida considerable de servicios en un evento bajo el escenario de “en el peor de los casos?",null,null,null,0]
[null,"P8.7","¿Se contaría con suficientes capacidades desarrolladas en la atención de salud para tratar las lesiones graves previstas bajo el escenario de “en el peor de los casos”? ",null,null,null,0]
[null,"P8.8","Porcentaje de estructuras educativas que corren el riesgo de resultar dañadas bajo los escenarios de “más probable” y “más severo”. ",null,null,null,0]
[null,{"$f":"C212","v":"P8.9"},"¿Habría suficiente equipo para los encargados de primera respuesta, con respaldo militar o civil, según sea necesario? ",null,null,null,0]
[]
[]
[null,"Aspecto Esencial 09: Asegurar una respuesta efectiva ante los desastres "]
[]
[null,{"$f":"C213","v":"P9.1"},{"$f":"E213","v":"¿Tiene la ciudad algún plan o procedimiento operativo estándar para tomar acciones tras una alerta temprana y un pronóstico? ¿A qué proporción de la población se puede llegar con un sistema de alerta temprana?"},null,null,null,{"$f":"F213","v":0}]
[null,{"$f":"C214","v":"P9.2"},{"$f":"E214","v":"¿Hay algún plan de gestión de desastres/ preparación/ respuesta de emergencia que describa la mitigación, la preparación y la respuesta de la ciudad frente a las emergencias locales? "},null,null,null,{"$f":"F214","v":0}]
[null,"P9.3","¿Cuenta la autoridad encargada de la gestión de desastres con suficiente capacidad de dotación de personal para respaldar las tareas de los encargados de primera respuesta en el escenario de “capacidad de reacción” en caso de un evento? ",null,null,null,0]
[null,"P9.4","¿Se ha definido claramente las necesidades de equipo y de suministros, al igual que la disponibilidad de equipo? ",null,null,null,0]
[null,"P9.5","¿Podría la ciudad continuar alimentando y albergando a la población después de un desastre? ",null,null,null,0]
[null,"P9.6","¿Hay algún centro de operaciones de emergencia, con la participación de todas las agencias, con procedimientos operativos estandarizados de automatización, diseñados específicamente para hacer frente a los escenarios “más probable” y “más severo”? ",null,null,null,0]
[null,"P9.7",{"$f":"E219","v":"¿Incluyen las prácticas y los simulacros al público y a los profesionales de distintos campos? "},null,null,null,{"$f":"F219","v":0}]
[]
[]
[]
[null,"Aspecto Esencial 10: Acelerar el proceso de recuperación y reconstruir mejor "]
[]
[null,{"$f":"C220","v":"P10.1"},{"$f":"E220","v":"¿Existe algún proceso o estrategia para la recuperación y la reconstrucción después de un evento, lo que incluye la reactivación económica, aspectos sociales, etc.? "},null,null,null,{"$f":"F220","v":0}]
[null,{"$f":"C221","v":"P10.2"},{"$f":"E221","v":"¿Incorporan los procesos de evaluación posterior a un evento de desastres análisis sobre las fallas y la habilidad de captar lecciones aprendidas que después se incorporan en el diseño y la ejecución de proyectos de reconstrucción? "},null,null,null,{"$f":"F221","v":0}]
[]
[]
[]
[]
[]
[]
[]
[]
[null,{"$f":"TODAY()","v":"2021-04-15"}]
[]
[]
[null,null,"Label","Name",null,"Essential","TotalScore","MaxScore","Label"]
[null,null,"S1","1.   Organise for Disaster Resilience",null,"E1",{"$f":"SUMIFS($F$175:$F$1154,$B$175:$B$1154,F163)","v":0},{"$f":"COUNTIFS($B$175:$B$221,F163)*3","v":9},"01",null,{"$f":"SUM(G163:G172)","v":0},{"$f":"K163/K164","v":0},{"$f":"CONCATENATE(\"La puntuación total para esta evaluación es \",SUM(G163:G172),\" / \",SUM(H163:H172))","v":"La puntuación total para esta evaluación es 0 / 141"}]
[null,null,"S2","2.   Identify, Understand and Use Current and Future Risk Scenarios",null,"E2",0,15,"02",null,{"$f":"SUM(H163:H172)","v":141},{"$f":"1-L163","v":1}]
[null,null,"S3","3.   Strengthen Financial Capacity for Resilience",null,"E3",0,12,"03"]
[null,null,"S4","4.   Pursue Resilient Urban Development and Design",null,"E4",0,12,"04"]
[null,null,"S5","5.   Safeguard Natural Buffers to Enhance Ecosystems’ Protective Functions",null,"E5",0,9,"05"]
[null,null,"S6","6.   Strengthen Institutional Capacity for Resilience",null,"E6",0,18,"06"]
[null,null,"S7","7.   Understand and Strengthen Societal Capacity for Resilience",null,"E7",0,12,"07"]
[null,null,"S8","8.   Increase Infrastructure Resilience",null,"E8",0,27,"08"]
[null,null,"S9","9.   Ensure Effective Disaster Response",null,"E9",0,21,"09"]
[null,null,"S10","10. Expedite Recovery and Build Back Better",null,"E10",0,6,"10"]
[]
[null,"Section","Ref",null,"Question","SelectedScore","ThisScore"]
[null,"E1","P1.1",null,"¿Incluye el plan maestro (o plan/estrategia relevante) de la ciudad enfoques para la reducción del riesgo de desastres, y se aplican de conformidad con el Marco de Sendai? ",{"$f":"IF(G175=\"\",0,IF(G175=0,0,4-G175))","v":0},{"$f":"'E01'!$E$7","v":0}]
[null,"E1","P1.2",null,"¿Existe algún mecanismo interinstitucional/sectorial con la autoridad y los recursos pertinentes para abordar la reducción del riesgo de desastres? ",{"$f":"IF(G176=\"\",0,IF(G176=0,0,4-G176))","v":0},{"$f":"'E01'!$E$18","v":0}]
[null,"E1","P1.3",null,"¿Se integra adecuadamente la resiliencia a otras funciones esenciales/carteras de proyectos de la ciudad? ",0,{"$f":"'E01'!$E$29","v":0}]
[null,"E2","P2.1",null,"¿Tiene la ciudad conocimiento sobre las principales amenazas que enfrenta, al igual que sobre su probabilidad de ocurrencia?",0,{"$f":"'E02'!$E$7","v":0}]
[null,"E2","P2.2",null,"¿Existe una comprensión compartida sobre el riesgo entre la ciudad y distintos proveedores de servicios básicos y otras agencias nacionales y regionales que desempeñan alguna función en la gestión de la infraestructura, tales como electricidad, agua, caminos y trenes, en cuanto a los puntos de tensión en los sistemas y los riesgos existentes en el ámbito de la ciudad?",0,{"$f":"'E02'!$E$18","v":0}]
[null,"E2","P2.3",null,"¿Se han acordado escenarios en los que se planteen la exposición y la vulnerabilidad de la ciudad ante cada amenaza o grupos de amenazas (véase el punto anterior)? ",0,{"$f":"'E02'!$E$29","v":0}]
[null,"E2","P2.4",null,"¿Existe una comprensión colectiva sobre los posibles fallos en cascada entre los diferentes sistemas de la ciudad y de la infraestructura bajo diversos escenarios? ",0,{"$f":"'E02'!$E$40","v":0}]
[null,"E2","P2.5",null,"¿Existen mapas claros sobre amenazas y datos acerca del riesgo? ¿Se actualizan con regularidad? ",0,{"$f":"'E02'!$E$51","v":0}]
[null,"E3","P3.1",null,"La ciudad/las agencias principales comprenden todas las fuentes de financiamiento y los “dividendos de la resiliencia” guardan una interrelación adecuada. También se comprenden todas las vías disponibles para atraer financiamiento externo y se están buscando activamente fondos para realizar importantes inversiones en la resiliencia. ",0,{"$f":"'E03'!$E$7","v":0}]
[null,"E3","P3.2",null,"¿Cuenta la ciudad con recursos específicos protegidos y mecanismos para fondos de contingencia para la reducción del riesgo de desastres en el ámbito local (mitigación, prevención, respuesta y recuperación)? ",0,{"$f":"'E03'!$E$18","v":0}]
[null,"E3","P3.3",null,"¿Qué nivel de cobertura existe a lo largo de los distintos sectores de la ciudad —empresas, negocios y la comunidad? ",0,{"$f":"'E03'!$E$29","v":0}]
[null,"E3","P3.4",null,"¿Qué incentivos existen para diferentes sectores y segmentos de las empresas y la sociedad, a fin de apoyar el aumento de la resiliencia? ",0,{"$f":"'E03'!$E$40","v":0}]
[null,"E4","P4.1",null,"¿Está la ciudad zonificada de forma adecuada, teniendo en cuenta, por ejemplo, el impacto de escenarios relevantes del riesgo en las actividades económicas, la producción agrícola y los centros de población? ",0,{"$f":"'E04'!$E$7","v":0}]
[null,"E4","P4.2",null,"¿Se fomentan enfoques a través del diseño y la consecución de un nuevo desarrollo urbano para promover la resiliencia?",0,{"$f":"'E04'!$E$18","v":0}]
[null,"E4","P4.3",null,"¿Existen códigos o normas de construcción y, de ser así, abordan amenazas y riesgos conocidos y específicos de la ciudad? ¿Se actualizan con regularidad estas normas? ",0,{"$f":"'E04'!$E$18","v":0}]
[null,"E4","P4.4",null,"¿Se aplican ampliamente, se hacen cumplir adecuadamente y se verifican las reglas de zonificación, los códigos y las normas de construcción? ",0,{"$f":"'E04'!$E$40","v":0}]
[null,"E5","P5.1",null,"Más allá de la sensibilización en torno a los bienes naturales, ¿comprende la ciudad las funciones (o los servicios) que este capital natural le ofrece? ",0,{"$f":"'E05'!$E$7","v":0}]
[null,"E5","P5.2",null,"¿Se está promoviendo a través de las políticas la infraestructura verde y azul en los principales proyectos de desarrollo e infraestructura en las zonas urbanas? ",0,{"$f":"'E05'!$E$18","v":0}]
[null,"E5","P5.3",null,"¿Tiene conocimiento la ciudad sobre los servicios ecosistémicos que se le están ofreciendo a partir del capital natural fuera de sus límites administrativos?  ¿Existen acuerdos con administraciones vecinas para apoyar la protección y la gestión de estos bienes? ",0,{"$f":"'E05'!$E$29","v":0}]
[null,"E6","P6.1",null,"¿Cuenta la ciudad con un acceso evidente a todas las destrezas y experiencias que se considera que necesitaría para reducir el riesgo y responder a los escenarios de desastres identificados? ",0,{"$f":"'E06'!$E$7","v":0}]
[null,"E6","P6.2",null,"¿Existe alguna campaña de educación o relaciones públicas debidamente coordinada, con canales y mensajes estructurados para cerciorarse de que la información sobre amenazas, riesgos y desastres (que se pueda comprender y utilizar) se disemine de forma adecuada entre el público? ",0,{"$f":"'E06'!$E$18","v":0}]
[null,"E6","P6.3",null,"El grado al que se comparte información relativa a la resiliencia de la ciudad con otras organizaciones involucradas. ",0,{"$f":"'E06'!$E$29","v":0}]
[null,"E6","P6.4",null,"¿Hay cursos de capacitación que abarquen aspectos del riesgo y la resiliencia y se ofrezcan a todos los sectores de la ciudad, tales como el gobierno, empresas, ONG y comunidades? ",0,{"$f":"'E06'!$E$40","v":0}]
[null,"E6","P6.5",null,"¿Hay material de capacitación disponible en la mayoría de los idiomas que se usan comúnmente en la ciudad?",0,{"$f":"'E06'!$E$51","v":0}]
[null,"E6","P6.6",null,"¿Está la ciudad buscando de forma proactiva intercambiar conocimiento y aprender de otras ciudades que enfrentan retos similares? ",0,{"$f":"'E06'!$E$62","v":0}]
[null,"E7","P7.1",null,"¿Están participando las organizaciones de base en la planificación previa a un evento de desastres y en las respuestas posteriores para cada barrio de la ciudad? ",0,{"$f":"'E07'!$E$7","v":0}]
[null,"E7","P7.2",null,"¿Hay programas de capacitación ofrecidos regularmente a los grupos más vulnerables y a las poblaciones necesitadas de la ciudad? ",0,{"$f":"'E07'!$E$18","v":0}]
[null,"E7","P7.3",null,"¿Qué proporción de los negocios cuentan con un plan de continuidad empresarial debidamente documentado, el cual se ha revisado durante los últimos 18 meses? ",0,{"$f":"'E07'!$E$29","v":0}]
[null,"E7","P7.4",null,"¿Qué tan eficaz es la ciudad en cuanto a la participación ciudadana y las comunicaciones referentes a la reducción del riesgo de desastres?",0,{"$f":"'E07'!$E$40","v":0}]
[null,"E8","P8.1",null,"¿Representa la resiliencia de la infraestructura vital una prioridad de la ciudad? ¿Tiene y ejecuta la ciudad algún plan o estrategia sobre infraestructura vital? ",0,{"$f":"'E08'!E7","v":0}]
[null,"E8","P8.2",null,"¿Está bien diseñada y construida la infraestructura de protección, con base en la información sobre los riesgos existentes? ",0,{"$f":"'E08'!E18","v":0}]
[null,"E8","P8.3",null,"¿Se prevé que se experimente la pérdida considerable de estos dos servicios esenciales en gran parte de la ciudad bajo los escenarios de desastres acordados?",0,{"$f":"'E08'!E29","v":0}]
[null,"E8","P8.4",null,"¿Se prevé que gran parte de la ciudad experimente la pérdida considerable de servicios en un evento bajo el escenario de “en el peor de los casos”? De haber fallas, ¿permanecerían seguros los corredores de infraestructura eléctrica (es decir, sin riesgos de fugas, sin peligros de electrocución etc.)?",0,{"$f":"'E08'!E40","v":0}]
[null,"E8","P8.5",null,"¿Se prevé que gran parte de la ciudad experimente la pérdida considerable de servicios en un evento bajo el escenario de “en el peor de los casos? De haber fallas, ¿permanecerían utilizables y seguros los corredores de la infraestructura de transporte (es decir, sin riesgo de inundaciones, etc.) ",0,{"$f":"'E08'!E51","v":0}]
[null,"E8","P8.6",null,"¿Se prevé que una gran parte de la ciudad experimente la pérdida considerable de servicios en un evento bajo el escenario de “en el peor de los casos?",0,{"$f":"'E08'!E62","v":0}]
[null,"E8","P8.7",null,"¿Se contaría con suficientes capacidades desarrolladas en la atención de salud para tratar las lesiones graves previstas bajo el escenario de “en el peor de los casos”? ",0,{"$f":"'E08'!E73","v":0}]
[null,"E8","P8.8",null,"Porcentaje de estructuras educativas que corren el riesgo de resultar dañadas bajo los escenarios de “más probable” y “más severo”. ",0,{"$f":"'E08'!E84","v":0}]
[null,"E8","P8.9",null,"¿Habría suficiente equipo para los encargados de primera respuesta, con respaldo militar o civil, según sea necesario? ",0,{"$f":"'E08'!E95","v":0}]
[null,"E9","P9.1",null,"¿Tiene la ciudad algún plan o procedimiento operativo estándar para tomar acciones tras una alerta temprana y un pronóstico? ¿A qué proporción de la población se puede llegar con un sistema de alerta temprana?",0,{"$f":"'E09'!$E$7","v":0}]
[null,"E9","P9.2",null,"¿Hay algún plan de gestión de desastres/ preparación/ respuesta de emergencia que describa la mitigación, la preparación y la respuesta de la ciudad frente a las emergencias locales? ",0,{"$f":"'E09'!$E$18","v":0}]
[null,"E9","P9.3",null,"¿Cuenta la autoridad encargada de la gestión de desastres con suficiente capacidad de dotación de personal para respaldar las tareas de los encargados de primera respuesta en el escenario de “capacidad de reacción” en caso de un evento? ",0,{"$f":"'E09'!$E$29","v":0}]
[null,"E9","P9.4",null,"¿Se ha definido claramente las necesidades de equipo y de suministros, al igual que la disponibilidad de equipo? ",0,{"$f":"'E09'!$E$40","v":0}]
[null,"E9","P9.5",null,"¿Podría la ciudad continuar alimentando y albergando a la población después de un desastre? ",0,{"$f":"'E09'!$E$51","v":0}]
[null,"E9","P9.6",null,"¿Hay algún centro de operaciones de emergencia, con la participación de todas las agencias, con procedimientos operativos estandarizados de automatización, diseñados específicamente para hacer frente a los escenarios “más probable” y “más severo”? ",0,{"$f":"'E09'!$E$62","v":0}]
[null,"E9","P9.7",null,"¿Incluyen las prácticas y los simulacros al público y a los profesionales de distintos campos? ",0,{"$f":"'E09'!$E$73","v":0}]
[null,"E10","P10.1",null,"¿Existe algún proceso o estrategia para la recuperación y la reconstrucción después de un evento, lo que incluye la reactivación económica, aspectos sociales, etc.? ",0,{"$f":"'E10'!$E$7","v":0}]
[null,"E10","P10.2",null,"¿Incorporan los procesos de evaluación posterior a un evento de desastres análisis sobre las fallas y la habilidad de captar lecciones aprendidas que después se incorporan en el diseño y la ejecución de proyectos de reconstrucción? ",0,{"$f":"'E10'!$E$18","v":0}]

{"sheet":"E01","index":3,"n_rows":33,"n_cols":6,"rows_kept":33,"cut":false,"hidden":false,"merged":[[16,2,16,3],[4,2,4,3],[3,2,3,3],[5,2,5,3],[6,2,9,3],[14,2,14,3],[15,2,15,3],[17,2,20,3],[25,2,25,3],[26,2,26,3],[27,2,27,3],[28,2,31,3]]}
[]
[]
[null,"P1.1 - Realización de planes"]
[null,"Pregunta/área de evaluación","Comentarios"]
[]
[null,"Escala indicativa de medida","Incluya medios de verificación (explicación y evidencia)"]
[null,null,null,null,null,{"$f":"IF(E7=1,TRUE,FALSE)","v":false}]
[null,null,null,null,null,{"$f":"IF(E7=2,TRUE,FALSE)","v":false}]
[null,null,null,null,null,{"$f":"IF(E7=3,TRUE,FALSE)","v":false}]
[null,null,null,null,null,{"$f":"IF(E7=4,TRUE,FALSE)","v":false}]
[null,"Acciones para lograr el máximo grado de resiliencia","Institución responsable","Plazo"]
[]
[]
[null,"P1.2 - Organización, coordinación y participación"]
[null,"Pregunta/área de evaluación","Comentarios"]
[]
[null,"Escala indicativa de medida","Incluya medios de verificación (explicación y evidencia)"]
[null,null,null,null,null,{"$f":"IF(E18=1,TRUE,FALSE)","v":false}]
[null,null,null,null,null,{"$f":"IF(E18=2,TRUE,FALSE)","v":false}]
[null,null,null,null,null,{"$f":"IF(E18=3,TRUE,FALSE)","v":false}]
[null,null,null,null,null,{"$f":"IF(E18=4,TRUE,FALSE)","v":false}]
[null,"Acciones para lograr el máximo grado de resiliencia","Institución responsable","Plazo"]
[]
[]
[null,"P1.3 - Integración"]
[null,"Pregunta/área de evaluación","Comentarios"]
[]
[null,"Escala indicativa de medida","Incluya medios de verificación (explicación y evidencia)"]
[null,null,null,null,null,{"$f":"IF(E29=1,TRUE,FALSE)","v":false}]
[null,null,null,null,null,{"$f":"IF(E29=2,TRUE,FALSE)","v":false}]
[null,null,null,null,null,{"$f":"IF(E29=3,TRUE,FALSE)","v":false}]
[null,null,null,null,null,{"$f":"IF(E29=4,TRUE,FALSE)","v":false}]
[null,"Acciones para lograr el máximo grado de resiliencia","Institución responsable","Plazo"]

{"sheet":"E02","index":4,"n_rows":55,"n_cols":6,"rows_kept":55,"cut":false,"hidden":false,"merged":[[48,2,48,3],[49,2,49,3],[50,2,53,3],[14,2,14,3],[15,2,15,3],[36,2,36,3],[37,2,37,3],[38,2,38,3],[39,2,42,3],[16,2,16,3],[17,2,20,3],[25,2,25,3],[26,2,26,3],[27,2,27,3],[28,2,31,3],[3,2,3,3],[4,2,4,3],[5,2,5,3],[6,2,9,3],[47,2,47,3]]}
[]
[]
[null,"P2.1 - Evaluación de amenazas"]
[null,"Pregunta/área de evaluación","Comentarios"]
[]
[null,"Escala indicativa de medida","Incluya medios de verificación (explicación y evidencia)"]
[null,null,null,null,null,{"$f":"IF(E7=1,TRUE,FALSE)","v":false}]
[null,null,null,null,null,{"$f":"IF(E7=2,TRUE,FALSE)","v":false}]
[null,null,null,null,null,{"$f":"IF(E7=3,TRUE,FALSE)","v":false}]
[null,null,null,null,null,{"$f":"IF(E7=4,TRUE,FALSE)","v":false}]
[null,"Acciones para lograr el máximo grado de resiliencia","Institución responsable","Plazo"]
[]
[]
[null,"P2.2 - Comprensión compartida del riesgo en la infraestructura "]
[null,"Pregunta/área de evaluación","Comentarios"]
[]
[null,"Escala indicativa de medida","Incluya medios de verificación (explicación y evidencia)"]
[null,null,null,null,null,{"$f":"IF(E18=1,TRUE,FALSE)","v":false}]
[null,null,null,null,null,{"$f":"IF(E18=2,TRUE,FALSE)","v":false}]
[null,null,null,null,null,{"$f":"IF(E18=3,TRUE,FALSE)","v":false}]
[null,null,null,null,null,{"$f":"IF(E18=4,TRUE,FALSE)","v":false}]
[null,"Acciones para lograr el máximo grado de resiliencia","Institución responsable","Plazo"]
[]
[]
[null,"P2.3 - Conocimiento sobre la exposición y la vulnerabilidad"]
[null,"Pregunta/área de evaluación","Comentarios"]
[]
[null,"Escala indicativa de medida","Incluya medios de verificación (explicación y evidencia)"]
[null,null,null,null,null,{"$f":"IF(E29=1,TRUE,FALSE)","v":false}]
[null,null,null,null,null,{"$f":"IF(E29=2,TRUE,FALSE)","v":false}]
[null,null,null,null,null,{"$f":"IF(E29=3,TRUE,FALSE)","v":false}]
[null,null,null,null,null,{"$f":"IF(E29=4,TRUE,FALSE)","v":false}]
[null,"Acciones para lograr el máximo grado de resiliencia","Institución responsable","Plazo"]
[]
[]
[null,"P2.4 - Efectos en cascada"]
[null,"Pregunta/área de evaluación","Comentarios"]
[]
[null,"Escala indicativa de medida","Incluya medios de verificación (explicación y evidencia)"]
[null,null,null,null,null,{"$f":"IF(E40=1,TRUE,FALSE)","v":false}]
[null,null,null,null,null,{"$f":"IF(E40=2,TRUE,FALSE)","v":false}]
[null,null,null,null,null,{"$f":"IF(E40=3,TRUE,FALSE)","v":false}]
[null,null,null,null,null,{"$f":"IF(E40=4,TRUE,FALSE)","v":false}]
[null,"Acciones para lograr el máximo grado de resiliencia","Institución responsable","Plazo"]
[]
[]
[null,"P2.5 - Presentación y proceso de actualización de la información sobre el riesgo "]
[null,"Pregunta/área de evaluación","Comentarios"]
[]
[null,"Escala indicativa de medida","Incluya medios de verificación (explicación y evidencia)"]
[null,null,null,null,null,{"$f":"IF(E51=1,TRUE,FALSE)","v":false}]
[null,null,null,null,null,{"$f":"IF(E51=2,TRUE,FALSE)","v":false}]
[null,null,null,null,null,{"$f":"IF(E51=3,TRUE,FALSE)","v":false}]
[null,null,null,null,null,{"$f":"IF(E51=4,TRUE,FALSE)","v":false}]
[null,"Acciones para lograr el máximo grado de resiliencia","Institución responsable","Plazo"]

{"sheet":"E03","index":5,"n_rows":44,"n_cols":6,"rows_kept":44,"cut":false,"hidden":false,"merged":[[36,2,36,3],[37,2,37,3],[38,2,38,3],[39,2,42,3],[16,2,16,3],[17,2,20,3],[25,2,25,3],[26,2,26,3],[27,2,27,3],[28,2,31,3],[15,2,15,3],[3,2,3,3],[4,2,4,3],[5,2,5,3],[6,2,9,3],[14,2,14,3]]}
[]
[]
[null,"P3.1 - Conocimiento sobre enfoques para atraer nuevas inversiones en la ciudad"]
[null,"Pregunta/área de evaluación","Comentarios"]
[]
[null,"Escala indicativa de medida","Incluya medios de verificación (explicación y evidencia)"]
[null,null,null,null,null,{"$f":"IF(E7=1,TRUE,FALSE)","v":false}]
[null,null,null,null,null,{"$f":"IF(E7=2,TRUE,FALSE)","v":false}]
[null,null,null,null,null,{"$f":"IF(E7=3,TRUE,FALSE)","v":false}]
[null,null,null,null,null,{"$f":"IF(E7=4,TRUE,FALSE)","v":false}]
[null,"Acciones para lograr el máximo grado de resiliencia","Responsible institution","Escala de tiempo"]
[]
[]
[null,"P3.2 - Presupuesto y plan de financiamiento para la resiliencia, incluidos los fondos de contingencia "]
[null,"Pregunta/área de evaluación","Comentarios"]
[]
[null,"Escala indicativa de medida","Incluya medios de verificación (explicación y evidencia)"]
[null,null,null,null,null,{"$f":"IF(E18=1,TRUE,FALSE)","v":false}]
[null,null,null,null,null,{"$f":"IF(E18=2,TRUE,FALSE)","v":false}]
[null,null,null,null,null,{"$f":"IF(E18=3,TRUE,FALSE)","v":false}]
[null,null,null,null,null,{"$f":"IF(E18=4,TRUE,FALSE)","v":false}]
[null,"Acciones para lograr el máximo grado de resiliencia","Institución responsable","Escala de tiempo"]
[]
[]
[null,"P3.3 - Seguros"]
[null,"Pregunta/área de evaluación","Comentarios"]
[]
[null,"Escala indicativa de medida","Incluya medios de verificación (explicación y evidencia)"]
[null,null,null,null,null,{"$f":"IF(E29=1,TRUE,FALSE)","v":false}]
[null,null,null,null,null,{"$f":"IF(E29=2,TRUE,FALSE)","v":false}]
[null,null,null,null,null,{"$f":"IF(E29=3,TRUE,FALSE)","v":false}]
[null,null,null,null,null,{"$f":"IF(E29=4,TRUE,FALSE)","v":false}]
[null,"Acciones para lograr el máximo grado de resiliencia","Institución responsable","Plazo"]
[]
[]
[null,"P3.4 - Incentivos"]
[null,"Pregunta/área de evaluación","Comentarios"]
[]
[null,"Escala indicativa de medida","Medios de verificación (explicación y prueba)"]
[null,null,null,null,null,{"$f":"IF(E40=1,TRUE,FALSE)","v":false}]
[null,null,null,null,null,{"$f":"IF(E40=2,TRUE,FALSE)","v":false}]
[null,null,null,null,null,{"$f":"IF(E40=3,TRUE,FALSE)","v":false}]
[null,null,null,null,null,{"$f":"IF(E40=4,TRUE,FALSE)","v":false}]
[null,"Acciones para lograr el máximo grado de resiliencia","Institución responsable","Plazo"]

{"sheet":"E04","index":6,"n_rows":44,"n_cols":6,"rows_kept":44,"cut":false,"hidden":false,"merged":[[36,2,36,3],[37,2,37,3],[38,2,38,3],[39,2,42,3],[16,2,16,3],[17,2,20,3],[25,2,25,3],[26,2,26,3],[27,2,27,3],[28,2,31,3],[15,2,15,3],[3,2,3,3],[4,2,4,3],[5,2,5,3],[6,2,9,3],[14,2,14,3]]}
[]
[]
[null,"P4.1 - Zonificación"]
[null,"Pregunta/área de evaluación","Comentarios"]
[]
[null,"Escala indicativa de medida","Medios de verificación (explicación y prueba)"]
[null,null,null,null,null,{"$f":"IF(E7=1,TRUE,FALSE)","v":false}]
[null,null,null,null,null,{"$f":"IF(E7=2,TRUE,FALSE)","v":false}]
[null,null,null,null,null,{"$f":"IF(E7=3,TRUE,FALSE)","v":false}]
[null,null,null,null,null,{"$f":"IF(E7=4,TRUE,FALSE)","v":false}]
[null,"Acciones para lograr el máximo grado de resiliencia","Institución responsable","Plazo"]
[]
[]
[null,"P4.2 - Nuevo desarrollo urbano"]
[null,"Pregunta/área de evaluación","Comentarios"]
[]
[null,"Escala indicativa de medida","Incluya medios de verificación (explicación y evidencia)"]
[null,null,null,null,null,{"$f":"IF(E18=1,TRUE,FALSE)","v":false}]
[null,null,null,null,null,{"$f":"IF(E18=2,TRUE,FALSE)","v":false}]
[null,null,null,null,null,{"$f":"IF(E18=3,TRUE,FALSE)","v":false}]
[null,null,null,null,null,{"$f":"IF(E18=4,TRUE,FALSE)","v":false}]
[null,"Acciones para lograr el máximo grado de resiliencia","Institución responsable","Plazo"]
[]
[]
[null,"P4.3 - Códigos y normas de construcción"]
[null,"Pregunta/área de evaluación","Comentarios"]
[]
[null,"Escala indicativa de medida","Incluya medios de verificación (explicación y evidencia)"]
[null,null,null,null,null,{"$f":"IF(E29=1,TRUE,FALSE)","v":false}]
[null,null,null,null,null,{"$f":"IF(E29=2,TRUE,FALSE)","v":false}]
[null,null,null,null,null,{"$f":"IF(E29=3,TRUE,FALSE)","v":false}]
[null,null,null,null,null,{"$f":"IF(E29=4,TRUE,FALSE)","v":false}]
[null,"Acciones para lograr el máximo grado de resiliencia","Institución responsable","Plazo"]
[]
[]
[null,"P4.4 - Aplicación de reglas de zonificación, códigos y normas de construcción "]
[null,"Pregunta/área de evaluación","Comentarios"]
[]
[null,"Escala indicativa de medida","Incluya medios de verificación (explicación y evidencia)"]
[null,null,null,null,null,{"$f":"IF(E40=1,TRUE,FALSE)","v":false}]
[null,null,null,null,null,{"$f":"IF(E40=2,TRUE,FALSE)","v":false}]
[null,null,null,null,null,{"$f":"IF(E40=3,TRUE,FALSE)","v":false}]
[null,null,null,null,null,{"$f":"IF(E40=4,TRUE,FALSE)","v":false}]
[null,"Acciones para lograr el máximo grado de resiliencia","Institución responsable","Plazo"]

{"sheet":"E05","index":7,"n_rows":33,"n_cols":6,"rows_kept":33,"cut":false,"hidden":false,"merged":[[28,2,31,3],[3,2,3,3],[4,2,4,3],[5,2,5,3],[6,2,9,3],[14,2,14,3],[15,2,15,3],[16,2,16,3],[17,2,20,3],[25,2,25,3],[26,2,26,3],[27,2,27,3]]}
[" "]
[]
[null,"P5.1 - Sensibilización y comprensión sobre los servicios/las funciones de los ecosistemas "]
[null,"Pregunta/área de evaluación","Comentarios"]
[]
[null,"Escala indicativa de medida","Incluya medios de verificación (explicación y evidencia)"]
[null,null,null,null,null,{"$f":"IF(E7=1,TRUE,FALSE)","v":false}]
[null,null,null,null,null,{"$f":"IF(E7=2,TRUE,FALSE)","v":false}]
[null,null,null,null,null,{"$f":"IF(E7=3,TRUE,FALSE)","v":false}]
[null,null,null,null,null,{"$f":"IF(E7=4,TRUE,FALSE)","v":false}]
[null,"Acciones para lograr el máximo grado de resiliencia","Institución responsable","Plazo"]
[]
[]
[null,"P5.2 - Integración de infraestructura verde y azul en las políticas y los proyectos de la ciudad "]
[null,"Pregunta/área de evaluación","Comentarios"]
[]
[null,"Escala indicativa de medida","Incluya medios de verificación (explicación y evidencia)"]
[null,null,null,null,0,{"$f":"IF(E18=1,TRUE,FALSE)","v":false}]
[null,null,null,null,null,{"$f":"IF(E18=2,TRUE,FALSE)","v":false}]
[null,null,null,null,null,{"$f":"IF(E18=3,TRUE,FALSE)","v":false}]
[null,null,null,null,null,{"$f":"IF(E18=4,TRUE,FALSE)","v":false}]
[null,"Acciones para lograr el máximo grado de resiliencia","Institución responsable","Plazo"]
[]
[]
[null,"P5.3 - Asuntos ambientales transfronterizos "]
[null,"Pregunta/área de evaluación","Comentarios"]
[]
[null,"Escala indicativa de medida","Incluya medios de verificación (explicación y evidencia)"]
[null,null,null,null,null,{"$f":"IF(E29=1,TRUE,FALSE)","v":false}]
[null,null,null,null,null,{"$f":"IF(E29=2,TRUE,FALSE)","v":false}]
[null,null,null,null,null,{"$f":"IF(E29=3,TRUE,FALSE)","v":false}]
[null,null,null,null,null,{"$f":"IF(E29=4,TRUE,FALSE)","v":false}]
[null,"Acciones para lograr el máximo grado de resiliencia","Institución responsable","Plazo"]

{"sheet":"E06","index":8,"n_rows":66,"n_cols":6,"rows_kept":66,"cut":false,"hidden":false,"merged":[[61,2,64,3],[36,2,36,3],[37,2,37,3],[38,2,38,3],[39,2,42,3],[47,2,47,3],[48,2,48,3],[49,2,49,3],[50,2,53,3],[58,2,58,3],[59,2,59,3],[60,2,60,3],[28,2,31,3],[3,2,3,3],[4,2,4,3],[5,2,5,3],[6,2,9,3],[14,2,14,3],[15,2,15,3],[16,2,16,3],[17,2,20,3],[25,2,25,3],[26,2,26,3],[27,2,27,3]]}
[]
[]
[null,"P6.1 - Habilidades y experiencia"]
[null,"Pregunta/área de evaluación","Comentarios"]
[]
[null,"Escala indicativa de medida","Medios de verificación (explicación y prueba)"]
[null,null,null,null,null,{"$f":"IF(E7=1,TRUE,FALSE)","v":false}]
[null,null,null,null,null,{"$f":"IF(E7=2,TRUE,FALSE)","v":false}]
[null,null,null,null,null,{"$f":"IF(E7=3,TRUE,FALSE)","v":false}]
[null,null,null,null,null,{"$f":"IF(E7=4,TRUE,FALSE)","v":false}]
[null,"Acciones para lograr el máximo grado de resiliencia","Institución responsable","Plazo"]
[]
[]
[null,"P6.2 - Sensibilización y educación pública"]
[null,"Pregunta/área de evaluación","Comentarios"]
[]
[null,"Escala indicativa de medida","Medios de verificación (explicación y prueba)"]
[null,null,null,null,null,{"$f":"IF(E18=1,TRUE,FALSE)","v":false}]
[null,null,null,null,null,{"$f":"IF(E18=2,TRUE,FALSE)","v":false}]
[null,null,null,null,null,{"$f":"IF(E18=3,TRUE,FALSE)","v":false}]
[null,null,null,null,null,{"$f":"IF(E18=4,TRUE,FALSE)","v":false}]
[null,"Acciones para lograr el máximo grado de resiliencia","Institución responsable","Plazo"]
[]
[]
[null,"P6.3 - Socialización de datos"]
[null,"Pregunta/área de evaluación","Comentarios"]
[]
[null,"Escala indicativa de medida","Incluya medios de verificación (explicación y evidencia)"]
[null,null,null,null,null,{"$f":"IF(E29=1,TRUE,FALSE)","v":false}]
[null,null,null,null,null,{"$f":"IF(E29=2,TRUE,FALSE)","v":false}]
[null,null,null,null,null,{"$f":"IF(E29=3,TRUE,FALSE)","v":false}]
[null,null,null,null,null,{"$f":"IF(E29=4,TRUE,FALSE)","v":false}]
[null,"Acciones para lograr el máximo grado de resiliencia","Institución responsable","Plazo"]
[]
[]
[null,"P6.4 - Capacitaciones"]
[null,"Pregunta/área de evaluación","Comentarios"]
[]
[null,"Escala indicativa de medida","Incluya medios de verificación (explicación y evidencia)"]
[null,null,null,null,null,{"$f":"IF(E40=1,TRUE,FALSE)","v":false}]
[null,null,null,null,null,{"$f":"IF(E40=2,TRUE,FALSE)","v":false}]
[null,null,null,null,null,{"$f":"IF(E40=3,TRUE,FALSE)","v":false}]
[null,null,null,null,null,{"$f":"IF(E40=4,TRUE,FALSE)","v":false}]
[null,"Acciones para lograr el máximo grado de resiliencia","Institución responsable","Plazo"]
[]
[]
[null,"P6.5 - Idiomas"]
[null,"Pregunta/área de evaluación","Comentarios"]
[]
[null,"Escala indicativa de medida","Incluya medios de verificación (explicación y evidencia)"]
[null,null,null,null,null,{"$f":"IF(E51=1,TRUE,FALSE)","v":false}]
[null,null,null,null,null,{"$f":"IF(E51=2,TRUE,FALSE)","v":false}]
[null,null,null,null,null,{"$f":"IF(E51=3,TRUE,FALSE)","v":false}]
[null,null,null,null,null,{"$f":"IF(E51=4,TRUE,FALSE)","v":false}]
[null,"Acciones para lograr el máximo grado de resiliencia","Institución responsable","Plazo"]
[]
[]
[null,"P6.6 - Aprendizaje con otros"]
[null,"Pregunta/área de evaluación","Comentarios"]
[]
[null,"Escala indicativa de medida","Incluya medios de verificación (explicación y evidencia)"]
[null,null,null,null,null,{"$f":"IF(E62=1,TRUE,FALSE)","v":false}]
[null,null,null,null,null,{"$f":"IF(E62=2,TRUE,FALSE)","v":false}]
[null,null,null,null,null,{"$f":"IF(E62=3,TRUE,FALSE)","v":false}]
[null,null,null,null,null,{"$f":"IF(E62=4,TRUE,FALSE)","v":false}]
[null,"Acciones para lograr el máximo grado de resiliencia","Institución responsable","Plazo"]

{"sheet":"E07","index":9,"n_rows":44,"n_cols":6,"rows_kept":44,"cut":false,"hidden":false,"merged":[[36,2,36,3],[37,2,37,3],[38,2,38,3],[39,2,42,3],[16,2,16,3],[17,2,20,3],[25,2,25,3],[26,2,26,3],[27,2,27,3],[28,2,31,3],[15,2,15,3],[3,2,3,3],[4,2,4,3],[5,2,5,3],[6,2,9,3],[14,2,14,3]]}
[]
[]
[null,"P7.1 - Organizaciones comunitarias o de base, redes y capacitación "]
[null,"Pregunta/área de evaluación","Comentarios"]
[]
[null,"Escala indicativa de medida","Incluya medios de verificación (explicación y evidencia)"]
[null,null,null,null,null,{"$f":"IF(E7=1,TRUE,FALSE)","v":false}]
[null,null,null,null,null,{"$f":"IF(E7=2,TRUE,FALSE)","v":false}]
[null,null,null,null,null,{"$f":"IF(E7=3,TRUE,FALSE)","v":false}]
[null,null,null,null,null,{"$f":"IF(E7=4,TRUE,FALSE)","v":false}]
[null,"Acciones para lograr la máxima resiliencia","Institución responsable","Plazo"]
[]
[]
[null,"P7.2 - Redes sociales “Sin dejar a nadie por fuera”"]
[null,"Pregunta/área de evaluación","Comentarios"]
[]
[null,"Escala indicativa de medida","Incluya medios de verificación (explicación y evidencia)"]
[null,null,null,null,null,{"$f":"IF(E18=1,TRUE,FALSE)","v":false}]
[null,null,null,null,null,{"$f":"IF(E18=2,TRUE,FALSE)","v":false}]
[null,null,null,null,null,{"$f":"IF(E18=3,TRUE,FALSE)","v":false}]
[null,null,null,null,null,{"$f":"IF(E18=4,TRUE,FALSE)","v":false}]
[null,"Acciones para lograr el máximo grado de resiliencia","Institución responsable","Plazo"]
[]
[]
[null,"P7.3 - Sector privado/ empleadores"]
[null,"Pregunta/área de evaluación ","Comentarios"]
[]
[null,"Escala indicativa de medida","Incluya medios de verificación (explicación y evidencia)"]
[null,null,null,null,null,{"$f":"IF(E29=1,TRUE,FALSE)","v":false}]
[null,null,null,null,null,{"$f":"IF(E29=2,TRUE,FALSE)","v":false}]
[null,null,null,null,null,{"$f":"IF(E29=3,TRUE,FALSE)","v":false}]
[null,null,null,null,null,{"$f":"IF(E29=4,TRUE,FALSE)","v":false}]
[null,"Acciones para lograr el máximo grado de resiliencia","Institución responsable","Plazo"]
[]
[]
[null,"P7.4 - Técnicas de participación ciudadana"]
[null,"Pregunta/área de evaluación ","Comentarios"]
[]
[null,"Escala indicativa de medida","Incluya medios de verificación (explicación y evidencia)"]
[null,null,null,null,null,{"$f":"IF(E40=1,TRUE,FALSE)","v":false}]
[null,null,null,null,null,{"$f":"IF(E40=2,TRUE,FALSE)","v":false}]
[null,null,null,null,null,{"$f":"IF(E40=3,TRUE,FALSE)","v":false}]
[null,null,null,null,null,{"$f":"IF(E40=4,TRUE,FALSE)","v":false}]
[null,"Acciones para lograr el máximo grado de resiliencia","Institución responsable","Plazo"]

{"sheet":"E08","index":10,"n_rows":99,"n_cols":6,"rows_kept":99,"cut":false,"hidden":false,"merged":[[94,2,97,3],[80,2,80,3],[81,2,81,3],[82,2,82,3],[83,2,86,3],[91,2,91,3],[92,2,92,3],[93,2,93,3],[27,2,27,3],[61,2,64,3],[36,2,36,3],[37,2,37,3],[38,2,38,3],[39,2,42,3],[47,2,47,3],[48,2,48,3],[49,2,49,3],[50,2,53,3],[58,2,58,3],[59,2,59,3],[60,2,60,3],[15,2,15,3],[16,2,16,3],[17,2,20,3],[25,2,25,3],[26,2,26,3],[3,2,3,3],[4,2,4,3],[5,2,5,3],[6,2,9,3],[14,2,14,3],[69,2,69,3],[70,2,70,3],[71,2,71,3],[72,2,75,3],[28,2,31,3]]}
["3 – La ciudad tiene y ejecuta (en colaboración con otras partes interesadas) un plan o estrategia sobre infraestructura vital para protegerla, así como sobre servicios básicos y públicos. La estrategia destaca los riesgos/las tensiones e incluye planes de continuidad de los servicios esenciales."]
[]
[null,"P8.1 - Vistazo general de la infraestructura vital"]
[null,"Pregunta/área de evaluación","Comentarios"]
[]
[null,"Escala indicativa de medida","Incluya medios de verificación (explicación y evidencia)"]
[null,null,null,null,null,{"$f":"IF(E7=1,TRUE,FALSE)","v":false}]
[null,null,null,null,null,{"$f":"IF(E7=2,TRUE,FALSE)","v":false}]
[null,null,null,null,null,{"$f":"IF(E7=3,TRUE,FALSE)","v":false}]
[null,null,null,null,null,{"$f":"IF(E7=4,TRUE,FALSE)","v":false}]
[null,"Acciones para lograr el máximo grado de resiliencia","Institución responsable","Plazo"]
[]
[]
[null,"P8.2 - Infraestructura de protección"]
[null,"Pregunta/área de evaluación","Comentarios"]
[]
[null,"Escala indicativa de medida","Incluya medios de verificación (explicación y evidencia)"]
[null,null,null,null,null,{"$f":"IF(E18=1,TRUE,FALSE)","v":false}]
[null,null,null,null,null,{"$f":"IF(E18=2,TRUE,FALSE)","v":false}]
[null,null,null,null,null,{"$f":"IF(E18=3,TRUE,FALSE)","v":false}]
[null,null,null,null,null,{"$f":"IF(E18=4,TRUE,FALSE)","v":false}]
[null,"Acciones para lograr el máximo grado de resiliencia","Institución responsable","Plazo"]
[]
[]
[null,"P8.3 - Agua potable y saneamiento"]
[null,"Pregunta/área de evaluación","Comentarios"]
[]
[null,"Escala indicativa de medida","Incluya medios de verificación (explicación y evidencia)"]
[null,null,null,null,null,{"$f":"IF(E29=1,TRUE,FALSE)","v":false}]
[null,null,null,null,null,{"$f":"IF(E29=2,TRUE,FALSE)","v":false}]
[null,null,null,null,null,{"$f":"IF(E29=3,TRUE,FALSE)","v":false}]
[null,null,null,null,null,{"$f":"IF(E29=4,TRUE,FALSE)","v":false}]
[null,"Acciones para lograr el máximo grado de resiliencia","Institución responsable","Plazo"]
[]
[]
[null,"P8.4 - Energía"]
[null,"Pregunta/área de evaluación","Comentarios"]
[]
[null,"Escala indicativa de medida","Incluya medios de verificación (explicación y evidencia)"]
[null,null,null,null,null,{"$f":"IF(E40=1,TRUE,FALSE)","v":false}]
[null,null,null,null,null,{"$f":"IF(E40=2,TRUE,FALSE)","v":false}]
[null,null,null,null,null,{"$f":"IF(E40=3,TRUE,FALSE)","v":false}]
[null,null,null,null,null,{"$f":"IF(E40=4,TRUE,FALSE)","v":false}]
[null,"Acciones para lograr el máximo grado de resiliencia","Institución responsable","Plazo"]
[]
[]
[null,"P8.5 - Transporte"]
[null,"Pregunta/área de evaluación","Comentarios"]
[]
[null,"Escala indicativa de medida","Incluya medios de verificación (explicación y evidencia)"]
[null,null,null,null,null,{"$f":"IF(E51=1,TRUE,FALSE)","v":false}]
[null,null,null,null,null,{"$f":"IF(E51=2,TRUE,FALSE)","v":false}]
[null,null,null,null,null,{"$f":"IF(E51=3,TRUE,FALSE)","v":false}]
[null,null,null,null,null,{"$f":"IF(E51=4,TRUE,FALSE)","v":false}]
[null,"Acciones para lograr el máximo grado de resiliencia","Institución responsable","Plazo"]
[]
[]
[null,"P8.6 - Comunicaciones"]
[null,"Pregunta/área de evaluación","Comentarios"]
[]
[null,"Escala indicativa de medida","Incluya medios de verificación (explicación y evidencia)"]
[null,null,null,null,null,{"$f":"IF(E62=1,TRUE,FALSE)","v":false}]
[null,null,null,null,null,{"$f":"IF(E62=2,TRUE,FALSE)","v":false}]
[null,null,null,null,null,{"$f":"IF(E62=3,TRUE,FALSE)","v":false}]
[null,null,null,null,null,{"$f":"IF(E62=4,TRUE,FALSE)","v":false}]
[null,"Acciones para lograr el máximo grado de resiliencia","Institución responsable","Plazo"]
[]
[]
[null,"P8.7 - Atención de salud"]
[null,"Pregunta/área de evaluación","Comentarios"]
[]
[null,"Escala indicativa de medida","Incluya medios de verificación (explicación y evidencia)"]
[null,null,null,null,null,{"$f":"IF(E73=1,TRUE,FALSE)","v":false}]
[null,null,null,null,null,{"$f":"IF(E73=2,TRUE,FALSE)","v":false}]
[null,null,null,null,null,{"$f":"IF(E73=3,TRUE,FALSE)","v":false}]
[null,null,null,null,null,{"$f":"IF(E73=4,TRUE,FALSE)","v":false}]
[null,"Acciones para lograr el máximo grado de resiliencia","Institución responsable","Plazo"]
[]
[]
[null,"P8.8 - Planteles educativos"]
[null,"Pregunta/área de evaluación","Comentarios"]
[]
[null,"Escala indicativa de medida","Incluya medios de verificación (explicación y evidencia)"]
[null,null,null,null,null,{"$f":"IF(E84=1,TRUE,FALSE)","v":false}]
[null,null,null,null,null,{"$f":"IF(E84=2,TRUE,FALSE)","v":false}]
[null,null,null,null,null,{"$f":"IF(E84=3,TRUE,FALSE)","v":false}]
[null,null,null,null,null,{"$f":"IF(E84=4,TRUE,FALSE)","v":false}]
[null,"Acciones para lograr el máximo grado de resiliencia","Institución responsable","Plazo"]
[]
[]
[null,"P8.9 - Recursos de los encargados de primera respuesta"]
[null,"Pregunta/área de evaluación","Comentarios"]
[]
[null,"Escala indicativa de medida","Incluya medios de verificación (explicación y evidencia)"]
[null,null,null,null,null,{"$f":"IF(E95=1,TRUE,FALSE)","v":false}]
[null,null,null,null,null,{"$f":"IF(E95=2,TRUE,FALSE)","v":false}]
[null,null,null,null,null,{"$f":"IF(E95=3,TRUE,FALSE)","v":false}]
[null,null,null,null,null,{"$f":"IF(E95=4,TRUE,FALSE)","v":false}]
[null,"Acciones para lograr el máximo grado de resiliencia","Institución responsable","Plazo"]

{"sheet":"E09","index":11,"n_rows":77,"n_cols":6,"rows_kept":77,"cut":false,"hidden":false,"merged":[[3,2,3,3],[4,2,4,3],[5,2,5,3],[6,2,9,3],[14,2,14,3],[15,2,15,3],[16,2,16,3],[17,2,20,3],[25,2,25,3],[26,2,26,3],[27,2,27,3],[28,2,31,3],[36,2,36,3],[37,2,37,3],[38,2,38,3],[39,2,42,3],[47,2,47,3],[48,2,48,3],[49,2,49,3],[50,2,53,3],[70,2,70,3],[71,2,71,3],[72,2,75,3],[58,2,58,3],[59,2,59,3],[60,2,60,3],[61,2,64,3],[69,2,69,3]]}
[]
[]
[null,"P9.1 - Alerta temprana"]
[null,"Pregunta/área de evaluación","Comentarios"]
[]
[null,"Escala indicativa de medida","Incluya medios de verificación (explicación y evidencia)"]
[null,null,null,null,null,{"$f":"IF(E7=1,TRUE,FALSE)","v":false}]
[null,null,null,null,null,{"$f":"IF(E7=2,TRUE,FALSE)","v":false}]
[null,null,null,null,null,{"$f":"IF(E7=3,TRUE,FALSE)","v":false}]
[null,null,null,null,null,{"$f":"IF(E7=4,TRUE,FALSE)","v":false}]
[null,"Acciones para lograr el máximo grado de resiliencia","Institución responsable","Plazo"]
[]
[]
[null,"P9.2 - Planes de gestión de un evento"]
[null,"Pregunta/área de evaluación","Comentarios"]
[]
[null,"Escala indicativa de medida","Incluya medios de verificación (explicación y evidencia)"]
[null,null,null,null,null,{"$f":"IF(E18=1,TRUE,FALSE)","v":false}]
[null,null,null,null,null,{"$f":"IF(E18=2,TRUE,FALSE)","v":false}]
[null,null,null,null,null,{"$f":"IF(E18=3,TRUE,FALSE)","v":false}]
[null,null,null,null,null,{"$f":"IF(E18=4,TRUE,FALSE)","v":false}]
[null,"Acciones para lograr el máximo grado de resiliencia","Institución responsable","Plazo"]
[]
[]
[null,"P9.3 - Dotación / necesidades de los encargados de primera respuesta"]
[null,"Pregunta/área de evaluación","Comentarios"]
[]
[null,"Escala indicativa de medida","Incluya medios de verificación (explicación y evidencia)"]
[null,null,null,null,null,{"$f":"IF(E29=1,TRUE,FALSE)","v":false}]
[null,null,null,null,null,{"$f":"IF(E29=2,TRUE,FALSE)","v":false}]
[null,null,null,null,null,{"$f":"IF(E29=3,TRUE,FALSE)","v":false}]
[null,null,null,null,null,{"$f":"IF(E29=4,TRUE,FALSE)","v":false}]
[null,"Acciones para lograr el máximo grado de resiliencia","Institución responsable","Plazo"]
[]
[]
[null,"P9.4 - Necesidades de equipo y de suministros de ayuda"]
[null,"Pregunta/área de evaluación","Comentarios"]
[]
[null,"Escala indicativa de medida","Incluya medios de verificación (explicación y evidencia)"]
[null,null,null,null,null,{"$f":"IF(E40=1,TRUE,FALSE)","v":false}]
[null,null,null,null,null,{"$f":"IF(E40=2,TRUE,FALSE)","v":false}]
[null,null,null,null,null,{"$f":"IF(E40=3,TRUE,FALSE)","v":false}]
[null,null,null,null,null,{"$f":"IF(E40=4,TRUE,FALSE)","v":false}]
[null,"Acciones para lograr el máximo grado de resiliencia","Institución responsable","Plazo"]
[]
[]
[null,"P9.5 - Suministro de alimentos, albergue, artículos básicos y combustible "]
[null,"Pregunta/área de evaluación","Comentarios"]
[]
[null,"Escala indicativa de medida","Incluya medios de verificación (explicación y evidencia)"]
[null,null,null,null,null,{"$f":"IF(E51=1,TRUE,FALSE)","v":false}]
[null,null,null,null,null,{"$f":"IF(E51=2,TRUE,FALSE)","v":false}]
[null,null,null,null,null,{"$f":"IF(E51=3,TRUE,FALSE)","v":false}]
[null,null,null,null,null,{"$f":"IF(E51=4,TRUE,FALSE)","v":false}]
[null,"Acciones para lograr el máximo grado de resiliencia","Institución responsable","Plazo"]
[]
[]
[null,"P9.6 - Interoperabilidad y labores interinstitucionales "]
[null,"Pregunta/área de evaluación","Comentarios"]
[]
[null,"Escala indicativa de medida","Incluya medios de verificación (explicación y evidencia)"]
[null,null,null,null,null,{"$f":"IF(E62=1,TRUE,FALSE)","v":false}]
[null,null,null,null,null,{"$f":"IF(E62=2,TRUE,FALSE)","v":false}]
[null,null,null,null,null,{"$f":"IF(E62=3,TRUE,FALSE)","v":false}]
[null,null,null,null,null,{"$f":"IF(E62=4,TRUE,FALSE)","v":false}]
[null,"Acciones para lograr el máximo grado de resiliencia","Institución responsable","Plazo"]
[]
[]
[null,"P9.7 - Simulacros"]
[null,"Pregunta/área de evaluación","Comentarios"]
[]
[null,"Escala indicativa de medida","Incluya medios de verificación (explicación y evidencia)"]
[null,null,null,null,null,{"$f":"IF(E73=1,TRUE,FALSE)","v":false}]
[null,null,null,null,null,{"$f":"IF(E73=2,TRUE,FALSE)","v":false}]
[null,null,null,null,null,{"$f":"IF(E73=3,TRUE,FALSE)","v":false}]
[null,null,null,null,null,{"$f":"IF(E73=4,TRUE,FALSE)","v":false}]
[null,"Acciones para lograr el máximo grado de resiliencia","Institución responsable","Plazo"]

{"sheet":"E10","index":12,"n_rows":22,"n_cols":6,"rows_kept":22,"cut":false,"hidden":false,"merged":[[15,2,15,3],[16,2,16,3],[17,2,20,3],[3,2,3,3],[4,2,4,3],[5,2,5,3],[6,2,9,3],[14,2,14,3]]}
[]
[]
[null,"P10.1 - Planificación de la recuperación después de un evento de desastres— antes del evento "]
[null,"Pregunta/área de evaluación","Comentarios"]
[]
[null,"Escala indicativa de medida","Incluya medios de verificación (explicación y evidencia)"]
[null,null,null,null,null,{"$f":"IF(E7=1,TRUE,FALSE)","v":false}]
[null,null,null,null,null,{"$f":"IF(E7=2,TRUE,FALSE)","v":false}]
[null,null,null,null,null,{"$f":"IF(E7=3,TRUE,FALSE)","v":false}]
[null,null,null,null,null,{"$f":"IF(E7=4,TRUE,FALSE)","v":false}]
[null,"Acciones para lograr el máximo grado de resiliencia","Institución responsable","Plazo"]
[]
[]
[null,"P10.2 - Lecciones aprendidas / ciclos de aprendizaje"]
[null,"Pregunta/área de evaluación","Comentarios"]
[]
[null,"Escala indicativa de medida","Incluya medios de verificación (explicación y evidencia)"]
[null,null,null,null,null,{"$f":"IF(E18=1,TRUE,FALSE)","v":false}]
[null,null,null,null,null,{"$f":"IF(E18=2,TRUE,FALSE)","v":false}]
[null,null,null,null,null,{"$f":"IF(E18=3,TRUE,FALSE)","v":false}]
[null,null,null,null,null,{"$f":"IF(E18=4,TRUE,FALSE)","v":false}]
[null,"Acciones para lograr el máximo grado de resiliencia","Institución responsable","Plazo"]

{"sheet":"About","index":13,"n_rows":0,"n_cols":0,"rows_kept":0,"cut":false,"hidden":false,"merged":[]}